[Event "Late-Titled-Tuesday-Blitz-March-12-2024"]
[Site "Chess.com"]
[Date "2024.03.12"]
[Round "6"]
[White "LeoWin2012"]
[Black "chess_blitz00"]
[Result "0-1"]
[WhiteElo "2201"]
[BlackElo "2454"]
[TimeControl "180+1"]
[EndTime "15:07:31 PDT"]
[Termination "chess_blitz00 won by checkmate"]

1. e4 {[%clk 0:03:00.9]} 1... d6 {[%clk 0:02:53.1]} 2. g3 {[%clk 0:03:00.5]}
2... c5 {[%clk 0:02:52]} 3. Bg2 {[%clk 0:03:00.4]} 3... Nc6 {[%clk 0:02:52.6]}
4. Ne2 {[%clk 0:03:00.5]} 4... g6 {[%clk 0:02:53.1]} 5. O-O {[%clk 0:02:59.6]}
5... Bg7 {[%clk 0:02:53.7]} 6. d3 {[%clk 0:03:00.2]} 6... e6 {[%clk 0:02:53.6]}
7. Nbc3 {[%clk 0:02:58]} 7... Nge7 {[%clk 0:02:54]} 8. f4 {[%clk 0:02:57.8]}
8... O-O {[%clk 0:02:53.8]} 9. Be3 {[%clk 0:02:56.9]} 9... a6 {[%clk 0:02:53.5]}
10. Kh1 {[%clk 0:02:54.2]} 10... b5 {[%clk 0:02:53.1]} 11. Qe1 {[%clk
0:02:52.5]} 11... Nd4 {[%clk 0:02:45.9]} 12. Bxd4 {[%clk 0:02:49.9]} 12... cxd4
{[%clk 0:02:46.8]} 13. Nd1 {[%clk 0:02:50.3]} 13... Bb7 {[%clk 0:02:44.4]} 14.
g4 {[%clk 0:02:49.5]} 14... Rc8 {[%clk 0:02:42.5]} 15. Rc1 {[%clk 0:02:42.1]}
15... Qb6 {[%clk 0:02:37.4]} 16. f5 {[%clk 0:02:34.2]} 16... exf5 {[%clk
0:02:37.3]} 17. gxf5 {[%clk 0:02:34.4]} 17... gxf5 {[%clk 0:02:36.8]} 18. exf5
{[%clk 0:02:33.4]} 18... Bxg2+ {[%clk 0:02:36.4]} 19. Kxg2 {[%clk 0:02:34.3]}
19... Qc6+ {[%clk 0:02:34.2]} 20. Kg1 {[%clk 0:02:31.7]} 20... Bf6 {[%clk
0:02:28.5]} 21. c3 {[%clk 0:02:03.6]} 21... Kh8 {[%clk 0:02:23.1]} 22. Ng3
{[%clk 0:01:51.4]} 22... Rg8 {[%clk 0:02:10.6]} 23. Nf2 {[%clk 0:01:46.2]} 23...
d5 {[%clk 0:01:20.7]} 24. Qe2 {[%clk 0:01:30.8]} 24... Nxf5 {[%clk 0:01:12.7]}
25. Ng4 {[%clk 0:01:19.6]} 25... Nxg3 {[%clk 0:01:05.9]} 26. hxg3 {[%clk
0:01:20.5]} 26... Bg7 {[%clk 0:00:44.2]} 27. Rxf7 {[%clk 0:01:13.1]} 27... Qg6
{[%clk 0:00:42.8]} 28. Rcf1 {[%clk 0:00:37.2]} 28... dxc3 {[%clk 0:00:37.9]} 29.
bxc3 {[%clk 0:00:37.1]} 29... Bxc3 {[%clk 0:00:30.8]} 30. R1f4 {[%clk
0:00:31.1]} 30... Rce8 {[%clk 0:00:18.1]} 31. Qc2 {[%clk 0:00:23.3]} 31... Be5
{[%clk 0:00:11.1]} 32. Rb4 {[%clk 0:00:14.6]} 32... d4 {[%clk 0:00:08.3]} 33.
Nxe5 {[%clk 0:00:02.6]} 33... Qxg3+ {[%clk 0:00:08.9]} 34. Kf1 {[%clk 0:00:03]}
34... Qxe5 {[%clk 0:00:08]} 35. Qf2 {[%clk 0:00:03]} 35... Qg5 {[%clk
0:00:05.3]} 36. Qf6+ {[%clk 0:00:03.1]} 36... Qxf6+ {[%clk 0:00:05.7]} 37. Rxf6
{[%clk 0:00:04]} 37... Ref8 {[%clk 0:00:06.1]} 38. Rxf8 {[%clk 0:00:04.4]} 38...
Rxf8+ {[%clk 0:00:07]} 39. Ke2 {[%clk 0:00:05]} 39... Rf4 {[%clk 0:00:07.5]} 40.
Rb1 {[%clk 0:00:04.7]} 40... h5 {[%clk 0:00:07.7]} 41. Rh1 {[%clk 0:00:04.8]}
41... h4 {[%clk 0:00:08.1]} 42. Rh3 {[%clk 0:00:04]} 42... Kh7 {[%clk
0:00:08.6]} 43. Kd2 {[%clk 0:00:04.2]} 43... Kh6 {[%clk 0:00:09.1]} 44. Ke2
{[%clk 0:00:04.6]} 44... Kh5 {[%clk 0:00:09.7]} 45. Rh1 {[%clk 0:00:04.6]} 45...
Rf6 {[%clk 0:00:06.9]} 46. Rc1 {[%clk 0:00:03.6]} 46... Re6+ {[%clk 0:00:07.1]}
47. Kf3 {[%clk 0:00:03.2]} 47... Re3+ {[%clk 0:00:06.8]} 48. Kf4 {[%clk
0:00:03.8]} 48... Rxd3 {[%clk 0:00:05.3]} 49. Rc5+ {[%clk 0:00:04.4]} 49... Kg6
{[%clk 0:00:05.1]} 50. Rc6+ {[%clk 0:00:04.9]} 50... Kf7 {[%clk 0:00:04.9]} 51.
Rxa6 {[%clk 0:00:05.4]} 51... h3 {[%clk 0:00:03.5]} 52. Rh6 {[%clk 0:00:05.5]}
52... Ke7 {[%clk 0:00:03.3]} 53. Ke4 {[%clk 0:00:05.8]} 53... Ra3 {[%clk
0:00:02.7]} 54. Kxd4 {[%clk 0:00:05.8]} 54... Kf7 {[%clk 0:00:01.9]} 55. Kc5
{[%clk 0:00:05.3]} 55... Kg7 {[%clk 0:00:02.6]} 56. Rh4 {[%clk 0:00:05.3]} 56...
Kg6 {[%clk 0:00:02.9]} 57. Kxb5 {[%clk 0:00:05.6]} 57... Kg5 {[%clk 0:00:03.7]}
58. Rh8 {[%clk 0:00:05.6]} 58... Kg4 {[%clk 0:00:04.4]} 59. Kb4 {[%clk
0:00:05.9]} 59... Rxa2 {[%clk 0:00:04.6]} 60. Rg8+ {[%clk 0:00:04.4]} 60... Kf3
{[%clk 0:00:04.7]} 61. Kc3 {[%clk 0:00:03.7]} 61... Re2 {[%clk 0:00:03.2]} 62.
Kd3 {[%clk 0:00:03.4]} 62... Re7 {[%clk 0:00:03.7]} 63. Rf8+ {[%clk 0:00:03.4]}
63... Kg2 {[%clk 0:00:04]} 64. Rg8+ {[%clk 0:00:03.2]} 64... Kh1 {[%clk
0:00:04.5]} 65. Rh8 {[%clk 0:00:03.8]} 65... h2 {[%clk 0:00:05]} 66. Kd2 {[%clk
0:00:04.3]} 66... Re5 {[%clk 0:00:04.7]} 67. Kd1 {[%clk 0:00:04.1]} 67... Kg2
{[%clk 0:00:05.4]} 68. Rg8+ {[%clk 0:00:03.8]} 68... Kf2 {[%clk 0:00:06.1]} 69.
Rf8+ {[%clk 0:00:03.2]} 69... Kg3 {[%clk 0:00:06.5]} 70. Rg8+ {[%clk 0:00:03.4]}
70... Kf3 {[%clk 0:00:05.9]} 71. Rh8 {[%clk 0:00:03.6]} 71... Kg3 {[%clk
0:00:02.5]} 72. Rg8+ {[%clk 0:00:03.9]} 72... Kf3 {[%clk 0:00:02.2]} 73. Rh8
{[%clk 0:00:04.2]} 73... Re2 {[%clk 0:00:03]} 74. Rh3+ {[%clk 0:00:02.7]} 74...
Kg4 {[%clk 0:00:02.8]} 75. Kxe2 {[%clk 0:00:01.4]} 75... Kxh3 {[%clk 0:00:03.1]}
76. Kf2 {[%clk 0:00:02.1]} 76... h1=Q {[%clk 0:00:04]} 77. Ke3 {[%clk 0:00:02]}
77... Qg2 {[%clk 0:00:04.9]} 78. Kd4 {[%clk 0:00:01.2]} 78... Qg3 {[%clk
0:00:05.8]} 79. Kc5 {[%clk 0:00:01.5]} 79... Kg2 {[%clk 0:00:06.7]} 80. Kc6
{[%clk 0:00:02.3]} 80... Qf3+ {[%clk 0:00:07.6]} 81. Kb6 {[%clk 0:00:03]} 81...
Kf2 {[%clk 0:00:08.5]} 82. Kc7 {[%clk 0:00:02.7]} 82... Qe3 {[%clk 0:00:09.4]}
83. Kb7 {[%clk 0:00:03.5]} 83... Qc5 {[%clk 0:00:09.1]} 84. Ka6 {[%clk
0:00:03.7]} 84... Qb4 {[%clk 0:00:09.5]} 85. Ka7 {[%clk 0:00:03.8]} 85... Qb5
{[%clk 0:00:10]} 86. Ka8 {[%clk 0:00:04.7]} 86... Ke3 {[%clk 0:00:10.6]} 87. Ka7
{[%clk 0:00:04.7]} 87... Kd4 {[%clk 0:00:11.5]} 88. Ka8 {[%clk 0:00:05.5]} 88...
Kd5 {[%clk 0:00:12.4]} 89. Ka7 {[%clk 0:00:06.4]} 89... Kc6 {[%clk 0:00:13.3]}
90. Ka8 {[%clk 0:00:07.3]} 90... Qb7# {[%clk 0:00:14.1]} 0-1

[Event "Late-Titled-Tuesday-Blitz-March-12-2024"]
[Site "Chess.com"]
[Date "2024.03.12"]
[Round "6"]
[White "Szparu"]
[Black "Slovak_fighter2000"]
[Result "1/2-1/2"]
[WhiteElo "2793"]
[BlackElo "2613"]
[TimeControl "180+1"]
[EndTime "15:08:12 PDT"]
[Termination "Game drawn - insufficient material"]

1. d4 {[%clk 0:03:00.5]} 1... Nf6 {[%clk 0:02:58.9]} 2. c4 {[%clk 0:03:01.4]}
2... e6 {[%clk 0:02:57]} 3. Nf3 {[%clk 0:03:01.3]} 3... b6 {[%clk 0:02:56.6]} 4.
a3 {[%clk 0:02:58.2]} 4... Ba6 {[%clk 0:02:55.8]} 5. Qc2 {[%clk 0:02:54.6]} 5...
c5 {[%clk 0:02:51.8]} 6. dxc5 {[%clk 0:02:48]} 6... Bxc5 {[%clk 0:02:37.4]} 7.
b4 {[%clk 0:02:43.8]} 7... Be7 {[%clk 0:02:34.7]} 8. e3 {[%clk 0:02:43.1]} 8...
O-O {[%clk 0:02:29]} 9. Nbd2 {[%clk 0:02:41.9]} 9... Bb7 {[%clk 0:02:27.8]} 10.
Bb2 {[%clk 0:02:40.1]} 10... Nc6 {[%clk 0:02:25.8]} 11. Bd3 {[%clk 0:02:39.5]}
11... Rc8 {[%clk 0:02:24.6]} 12. O-O {[%clk 0:02:35.2]} 12... Qc7 {[%clk
0:02:19.1]} 13. Rac1 {[%clk 0:02:34.6]} 13... Qb8 {[%clk 0:02:15]} 14. Bxf6
{[%clk 0:02:23.1]} 14... Bxf6 {[%clk 0:02:14.4]} 15. Bxh7+ {[%clk 0:02:24]}
15... Kh8 {[%clk 0:02:14.7]} 16. Bd3 {[%clk 0:02:24.9]} 16... Ne5 {[%clk
0:02:04.4]} 17. Be2 {[%clk 0:02:18]} 17... d5 {[%clk 0:01:58.3]} 18. Nxe5 {[%clk
0:02:06.9]} 18... Qxe5 {[%clk 0:01:55.4]} 19. Bf3 {[%clk 0:02:00.4]} 19... Ba8
{[%clk 0:01:48.2]} 20. Qd3 {[%clk 0:01:55.8]} 20... Rcd8 {[%clk 0:01:34.8]} 21.
c5 {[%clk 0:01:42.8]} 21... bxc5 {[%clk 0:01:32.7]} 22. bxc5 {[%clk 0:01:41.2]}
22... Bc6 {[%clk 0:01:27.7]} 23. g3 {[%clk 0:01:36]} 23... Rb8 {[%clk
0:01:19.9]} 24. Rfe1 {[%clk 0:01:33.2]} 24... g6 {[%clk 0:01:16]} 25. Bg2 {[%clk
0:01:32.9]} 25... Kg7 {[%clk 0:01:12.9]} 26. Nf3 {[%clk 0:01:32.4]} 26... Qc7
{[%clk 0:01:05.8]} 27. Nd4 {[%clk 0:01:31.3]} 27... Rb2 {[%clk 0:00:54.8]} 28.
Rb1 {[%clk 0:01:27.4]} 28... Rfb8 {[%clk 0:00:54.5]} 29. Rxb2 {[%clk 0:01:25.9]}
29... Rxb2 {[%clk 0:00:55.4]} 30. Rb1 {[%clk 0:01:26.1]} 30... Rxb1+ {[%clk
0:00:48.9]} 31. Qxb1 {[%clk 0:01:26.2]} 31... Bd7 {[%clk 0:00:45.4]} 32. Qb4
{[%clk 0:01:11.7]} 32... Be7 {[%clk 0:00:43.5]} 33. Qc3 {[%clk 0:01:11.8]} 33...
Kg8 {[%clk 0:00:38.3]} 34. c6 {[%clk 0:01:10.4]} 34... e5 {[%clk 0:00:37.2]} 35.
Nb5 {[%clk 0:00:31.3]} 35... Qxc6 {[%clk 0:00:35.1]} 36. Qxc6 {[%clk 0:00:30.9]}
36... Bxc6 {[%clk 0:00:35.4]} 37. Nxa7 {[%clk 0:00:31.5]} 37... Bd7 {[%clk
0:00:28]} 38. Bxd5 {[%clk 0:00:29.4]} 38... Bc5 {[%clk 0:00:27.2]} 39. Nc6
{[%clk 0:00:26.9]} 39... Bxc6 {[%clk 0:00:27.7]} 40. Bxc6 {[%clk 0:00:27.8]}
40... Bxa3 {[%clk 0:00:28.3]} 41. h4 {[%clk 0:00:27.9]} 41... f6 {[%clk
0:00:28.2]} 42. Be8 {[%clk 0:00:27.4]} 42... Kg7 {[%clk 0:00:28.4]} 43. Kg2
{[%clk 0:00:27.4]} 43... Be7 {[%clk 0:00:28.6]} 44. g4 {[%clk 0:00:23.7]} 44...
f5 {[%clk 0:00:27.9]} 45. g5 {[%clk 0:00:24]} 45... e4 {[%clk 0:00:24.8]} 46.
Kf1 {[%clk 0:00:23.5]} 46... Bd6 {[%clk 0:00:24]} 47. Ke2 {[%clk 0:00:23]} 47...
Be5 {[%clk 0:00:23.5]} 48. Kd2 {[%clk 0:00:22.3]} 48... Bc7 {[%clk 0:00:23]} 49.
Kc2 {[%clk 0:00:20.2]} 49... Ba5 {[%clk 0:00:23.2]} 50. Kd1 {[%clk 0:00:18.3]}
50... Bb4 {[%clk 0:00:23.5]} 51. Ke2 {[%clk 0:00:18.2]} 51... Ba5 {[%clk
0:00:24]} 52. f4 {[%clk 0:00:16]} 52... exf3+ {[%clk 0:00:23.3]} 53. Kxf3 {[%clk
0:00:16.3]} 53... Be1 {[%clk 0:00:23.5]} 54. h5 {[%clk 0:00:15.8]} 54... gxh5
{[%clk 0:00:22.2]} 55. Bxh5 {[%clk 0:00:16.7]} 55... Bd2 {[%clk 0:00:16.7]} 56.
Kf4 {[%clk 0:00:15.5]} 56... Bc1 {[%clk 0:00:17.1]} 57. Bd1 {[%clk 0:00:14.2]}
57... Bd2 {[%clk 0:00:17.3]} 58. Bc2 {[%clk 0:00:14.5]} 58... Bc1 {[%clk
0:00:14.6]} 59. Bxf5 {[%clk 0:00:15.1]} 59... Bb2 {[%clk 0:00:14.1]} 60. e4
{[%clk 0:00:14.6]} 60... Bc1+ {[%clk 0:00:13.3]} 61. Kg4 {[%clk 0:00:14.9]}
61... Bb2 {[%clk 0:00:13.7]} 62. Bd7 {[%clk 0:00:14.9]} 62... Ba3 {[%clk
0:00:10.7]} 63. Kf5 {[%clk 0:00:14.4]} 63... Be7 {[%clk 0:00:11.1]} 64. Be8
{[%clk 0:00:14.6]} 64... Bd8 {[%clk 0:00:10.6]} 65. Bh5 {[%clk 0:00:14.6]} 65...
Be7 {[%clk 0:00:10.8]} 66. e5 {[%clk 0:00:14.8]} 66... Bd8 {[%clk 0:00:11]} 67.
e6 {[%clk 0:00:13.7]} 67... Be7 {[%clk 0:00:11.3]} 68. Bf7 {[%clk 0:00:13.5]}
68... Bd8 {[%clk 0:00:11.7]} 69. g6 {[%clk 0:00:12.3]} 69... Be7 {[%clk
0:00:11.5]} 70. Ke5 {[%clk 0:00:12.8]} 70... Kf8 {[%clk 0:00:08.9]} 71. Kd5
{[%clk 0:00:12.9]} 71... Kg7 {[%clk 0:00:08.6]} 72. Kc6 {[%clk 0:00:13.3]} 72...
Kf8 {[%clk 0:00:08.1]} 73. Kd7 {[%clk 0:00:14.2]} 73... Ba3 {[%clk 0:00:08.4]}
74. Be8 {[%clk 0:00:13.3]} 74... Bb4 {[%clk 0:00:08.4]} 75. Kd8 {[%clk
0:00:13.2]} 75... Be7+ {[%clk 0:00:08.4]} 76. Kd7 {[%clk 0:00:13.5]} 76... Ba3
{[%clk 0:00:09.3]} 77. Bf7 {[%clk 0:00:14]} 77... Bb4 {[%clk 0:00:08.9]} 78. Kd8
{[%clk 0:00:12.8]} 78... Be7+ {[%clk 0:00:09.1]} 79. Kc7 {[%clk 0:00:13.4]}
79... Ba3 {[%clk 0:00:10]} 80. Kc6 {[%clk 0:00:14]} 80... Be7 {[%clk 0:00:10.2]}
81. Kb7 {[%clk 0:00:09]} 81... Ba3 {[%clk 0:00:10.3]} 82. Kb6 {[%clk 0:00:08]}
82... Be7 {[%clk 0:00:10.5]} 83. Kb5 {[%clk 0:00:07.8]} 83... Bd6 {[%clk
0:00:10.7]} 84. Kc4 {[%clk 0:00:08.7]} 84... Be7 {[%clk 0:00:11.1]} 85. Kd5
{[%clk 0:00:09.6]} 85... Ba3 {[%clk 0:00:11.2]} 86. Ke4 {[%clk 0:00:10.5]} 86...
Bb4 {[%clk 0:00:10.9]} 87. Kf5 {[%clk 0:00:11.4]} 87... Ba3 {[%clk 0:00:11.2]}
88. Kg5 {[%clk 0:00:12.3]} 88... Bc1+ {[%clk 0:00:10.8]} 89. Kh5 {[%clk
0:00:12.6]} 89... Bb2 {[%clk 0:00:10.4]} 90. Kh6 {[%clk 0:00:12.1]} 90... Bg7+
{[%clk 0:00:10.4]} 91. Kh7 {[%clk 0:00:12.5]} 91... Bf6 {[%clk 0:00:10.9]} 92.
Bg8 {[%clk 0:00:09.6]} 92... Be5 {[%clk 0:00:07.9]} 93. Kh6 {[%clk 0:00:09.7]}
93... Bg7+ {[%clk 0:00:08]} 94. Kh7 {[%clk 0:00:10]} 94... Be5 {[%clk
0:00:07.2]} 95. Bf7 {[%clk 0:00:07.7]} 95... Bf6 {[%clk 0:00:06]} 96. e7+ {[%clk
0:00:04.5]} 96... Kxe7 {[%clk 0:00:05.2]} 97. g7 {[%clk 0:00:03.6]} 97... Bxg7
{[%clk 0:00:05.6]} 1/2-1/2

[Event "Late-Titled-Tuesday-Blitz-March-12-2024"]
[Site "Chess.com"]
[Date "2024.03.12"]
[Round "6"]
[White "lucasran"]
[Black "Moultino06"]
[Result "0-1"]
[WhiteElo "2609"]
[BlackElo "2817"]
[TimeControl "180+1"]
[EndTime "15:08:38 PDT"]
[Termination "Moultino06 won by checkmate"]

1. Nf3 {[%clk 0:02:56.6]} 1... g6 {[%clk 0:02:57.5]} 2. c4 {[%clk 0:02:54.4]}
2... Bg7 {[%clk 0:02:55.7]} 3. d4 {[%clk 0:02:54.5]} 3... d6 {[%clk 0:02:55]} 4.
e4 {[%clk 0:02:47.9]} 4... Bg4 {[%clk 0:02:54.5]} 5. Be2 {[%clk 0:02:46.9]} 5...
Nc6 {[%clk 0:02:52.1]} 6. Be3 {[%clk 0:02:47.1]} 6... Nf6 {[%clk 0:02:48.7]} 7.
Nc3 {[%clk 0:02:47.4]} 7... Bxf3 {[%clk 0:02:43.3]} 8. Bxf3 {[%clk 0:02:47.3]}
8... e5 {[%clk 0:02:44.2]} 9. d5 {[%clk 0:02:46]} 9... Nd4 {[%clk 0:02:44.8]}
10. Bxd4 {[%clk 0:02:46.2]} 10... exd4 {[%clk 0:02:45.7]} 11. Qxd4 {[%clk
0:02:47.1]} 11... O-O {[%clk 0:02:44.9]} 12. Qd2 {[%clk 0:02:45.5]} 12... Re8
{[%clk 0:02:35.7]} 13. O-O {[%clk 0:02:45.8]} 13... h5 {[%clk 0:02:33.6]} 14.
Rfe1 {[%clk 0:02:42.2]} 14... Nh7 {[%clk 0:02:32.9]} 15. g3 {[%clk 0:02:27.8]}
15... a6 {[%clk 0:02:23.7]} 16. a4 {[%clk 0:02:27.4]} 16... a5 {[%clk
0:02:20.9]} 17. Bg2 {[%clk 0:02:27.3]} 17... h4 {[%clk 0:02:10.9]} 18. Rad1
{[%clk 0:02:24.5]} 18... Qf6 {[%clk 0:01:59.9]} 19. Qc2 {[%clk 0:02:24]} 19...
Nf8 {[%clk 0:01:33.2]} 20. Bh3 {[%clk 0:02:15.1]} 20... Qe7 {[%clk 0:01:13.8]}
21. f4 {[%clk 0:01:36.2]} 21... Nd7 {[%clk 0:01:01.3]} 22. Bxd7 {[%clk
0:01:35.7]} 22... Qxd7 {[%clk 0:01:02.2]} 23. Kg2 {[%clk 0:01:36.2]} 23... Ra6
{[%clk 0:00:54.8]} 24. b3 {[%clk 0:01:34.5]} 24... Qg4 {[%clk 0:00:48.2]} 25.
Rd3 {[%clk 0:01:29.2]} 25... Re7 {[%clk 0:00:36.1]} 26. Qe2 {[%clk 0:01:29.3]}
26... Qd7 {[%clk 0:00:27.3]} 27. Qc2 {[%clk 0:01:24.3]} 27... Ra8 {[%clk
0:00:23.1]} 28. Rde3 {[%clk 0:01:18.8]} 28... Rae8 {[%clk 0:00:18.1]} 29. Qd3
{[%clk 0:01:16.1]} 29... Qg4 {[%clk 0:00:15.9]} 30. h3 {[%clk 0:01:10.9]} 30...
Qd7 {[%clk 0:00:14.9]} 31. g4 {[%clk 0:01:11.5]} 31... f5 {[%clk 0:00:13]} 32.
gxf5 {[%clk 0:01:09.6]} 32... gxf5 {[%clk 0:00:07.9]} 33. exf5 {[%clk
0:00:41.5]} 33... Rxe3 {[%clk 0:00:08.8]} 34. Rxe3 {[%clk 0:00:42.4]} 34... Rxe3
{[%clk 0:00:09]} 35. Qxe3 {[%clk 0:00:43.3]} 35... Qxf5 {[%clk 0:00:09.9]} 36.
Ne4 {[%clk 0:00:42.9]} 36... Bh6 {[%clk 0:00:05.9]} 37. Kf3 {[%clk 0:00:23.3]}
37... Qxh3+ {[%clk 0:00:05.7]} 38. Ke2 {[%clk 0:00:23.3]} 38... Qxe3+ {[%clk
0:00:05.5]} 39. Kxe3 {[%clk 0:00:23.5]} 39... h3 {[%clk 0:00:03]} 40. Kf3 {[%clk
0:00:23.7]} 40... h2 {[%clk 0:00:02.6]} 41. Ng3 {[%clk 0:00:09]} 41... Kf7
{[%clk 0:00:02.9]} 42. Kg4 {[%clk 0:00:06.4]} 42... Kf6 {[%clk 0:00:03]} 43. Nh1
{[%clk 0:00:06.1]} 43... Kg6 {[%clk 0:00:03.1]} 44. Nf2 {[%clk 0:00:06.2]} 44...
c6 {[%clk 0:00:03]} 45. Nh1 {[%clk 0:00:04.8]} 45... cxd5 {[%clk 0:00:02.7]} 46.
cxd5 {[%clk 0:00:05.7]} 46... Kf6 {[%clk 0:00:03.6]} 47. Nf2 {[%clk 0:00:06]}
47... b6 {[%clk 0:00:04]} 48. Nh1 {[%clk 0:00:06.1]} 48... Kf7 {[%clk
0:00:04.3]} 49. Nf2 {[%clk 0:00:06.2]} 49... Ke7 {[%clk 0:00:04.7]} 50. Kf5
{[%clk 0:00:04.8]} 50... Kf8 {[%clk 0:00:04.6]} 51. Nh1 {[%clk 0:00:03.9]} 51...
Kf7 {[%clk 0:00:03.3]} 52. Ng3 {[%clk 0:00:04.4]} 52... Ke7 {[%clk 0:00:02]} 53.
Kg4 {[%clk 0:00:04.4]} 53... Kf7 {[%clk 0:00:02.2]} 54. Nh1 {[%clk 0:00:04.2]}
54... Kf6 {[%clk 0:00:02.9]} 55. Nf2 {[%clk 0:00:04.5]} 55... Kg6 {[%clk
0:00:03.3]} 56. Nh1 {[%clk 0:00:04.2]} 56... Bg7 {[%clk 0:00:03.9]} 57. Kg3
{[%clk 0:00:03.5]} 57... Kf5 {[%clk 0:00:04.3]} 58. Kf3 {[%clk 0:00:01.8]} 58...
Bh6 {[%clk 0:00:04.5]} 59. Ng3+ {[%clk 0:00:02.3]} 59... Kg6 {[%clk 0:00:05]}
60. Kg4 {[%clk 0:00:02.9]} 60... Kf6 {[%clk 0:00:05.2]} 61. Nh1 {[%clk
0:00:02.8]} 61... Bf8 {[%clk 0:00:05.6]} 62. Nf2 {[%clk 0:00:03.2]} 62... Kg7
{[%clk 0:00:05.9]} 63. Kg5 {[%clk 0:00:02.1]} 63... Be7+ {[%clk 0:00:06]} 64.
Kg4 {[%clk 0:00:02.4]} 64... Bd8 {[%clk 0:00:06.5]} 65. Nh1 {[%clk 0:00:03]}
65... Kf6 {[%clk 0:00:06.7]} 66. Ng3 {[%clk 0:00:03.3]} 66... Kg6 {[%clk
0:00:06.9]} 67. Nh1 {[%clk 0:00:03.4]} 67... Bf6 {[%clk 0:00:06.8]} 68. Ng3
{[%clk 0:00:03.1]} 68... Bd4 {[%clk 0:00:07.1]} 69. Kh3 {[%clk 0:00:02.9]} 69...
Be3 {[%clk 0:00:06.4]} 70. Kg4 {[%clk 0:00:03.2]} 70... Bf2 {[%clk 0:00:05.5]}
71. Nh1 {[%clk 0:00:03.5]} 71... Be1 {[%clk 0:00:05.9]} 72. Kf3 {[%clk 0:00:03]}
72... Kf5 {[%clk 0:00:06.1]} 73. Ke2 {[%clk 0:00:03.6]} 73... Bh4 {[%clk
0:00:05.6]} 74. Kf3 {[%clk 0:00:04.1]} 74... Be1 {[%clk 0:00:05.8]} 75. Ke2
{[%clk 0:00:04.6]} 75... Kxf4 {[%clk 0:00:05.4]} 76. Kxe1 {[%clk 0:00:04.8]}
76... Ke4 {[%clk 0:00:05.8]} 77. Ke2 {[%clk 0:00:02]} 77... Kxd5 {[%clk
0:00:06]} 78. Kd3 {[%clk 0:00:02.8]} 78... Kc5 {[%clk 0:00:06.2]} 79. Kc3 {[%clk
0:00:03.3]} 79... d5 {[%clk 0:00:05.9]} 80. Nf2 {[%clk 0:00:02.6]} 80... d4+
{[%clk 0:00:06]} 81. Kb2 {[%clk 0:00:02]} 81... Kd5 {[%clk 0:00:05.9]} 82. Kc2
{[%clk 0:00:02.5]} 82... Ke5 {[%clk 0:00:06]} 83. Kd3 {[%clk 0:00:03]} 83... Kd5
{[%clk 0:00:06.3]} 84. Nh1 {[%clk 0:00:03.5]} 84... Kc5 {[%clk 0:00:06.4]} 85.
Kc2 {[%clk 0:00:02.2]} 85... Kb4 {[%clk 0:00:06.4]} 86. Nf2 {[%clk 0:00:01.7]}
86... Ka3 {[%clk 0:00:06.8]} 87. Nh1 {[%clk 0:00:01.4]} 87... d3+ {[%clk
0:00:07]} 88. Kxd3 {[%clk 0:00:02.1]} 88... Kxb3 {[%clk 0:00:07.9]} 89. Nf2
{[%clk 0:00:02.3]} 89... Kxa4 {[%clk 0:00:08.3]} 90. Kc2 {[%clk 0:00:03]} 90...
b5 {[%clk 0:00:08.7]} 91. Kb2 {[%clk 0:00:03.2]} 91... b4 {[%clk 0:00:09]} 92.
Ka2 {[%clk 0:00:02.5]} 92... Kb5 {[%clk 0:00:09.4]} 93. Kb3 {[%clk 0:00:02.5]}
93... a4+ {[%clk 0:00:10.3]} 94. Kb2 {[%clk 0:00:03.1]} 94... Kc4 {[%clk
0:00:10.8]} 95. Kc2 {[%clk 0:00:03.3]} 95... a3 {[%clk 0:00:11.2]} 96. Kb1
{[%clk 0:00:01.8]} 96... b3 {[%clk 0:00:11.6]} 97. Ka1 {[%clk 0:00:01.2]} 97...
Kc3 {[%clk 0:00:12.1]} 98. Nd1+ {[%clk 0:00:01.4]} 98... Kc2 {[%clk 0:00:12.1]}
99. Nf2 {[%clk 0:00:02.3]} 99... b2+ {[%clk 0:00:11.8]} 100. Ka2 {[%clk
0:00:03.2]} 100... b1=Q+ {[%clk 0:00:12.5]} 101. Kxa3 {[%clk 0:00:04.1]} 101...
Qb3# {[%clk 0:00:13.4]} 0-1